fUST/lending_fUST_20241106
["ID","MTS","AMOUNT","RATE_DAILY","PERIOD"]
[341376711,1730857840882,-501.1340995,0.00038356,14]
[341376712,1730857840893,-500.0,0.00038356,14]
[341376713,1730857840906,-500.0,0.00038356,14]
[341376714,1730857840915,-503.70368094,0.00038356,14]
[341376715,1730857840925,-431.04856955,0.00038356,14]
[341376716,1730857840938,-82.10054099,0.00038356,14]
[341376717,1730857840948,-614.22243087,0.00038356,14]
[341376718,1730857840958,-500.0,0.00038356,14]
[341376719,1730857840968,-505.95489794,0.00038356,14]
[341376720,1730857840978,-508.90176407,0.00038356,14]
[341376721,1730857840987,-532.09952118,0.00038356,14]
[341376722,1730857840997,-505.68357519,0.00038356,14]
[341376723,1730857841007,-514.6068865,0.00038356,14]
[341376724,1730857841018,-500.0,0.00038356,14]
[341376725,1730857841027,-508.78468909,0.00038356,14]
[341376726,1730857841037,-554.59,0.00038356,14]
[341376727,1730857841047,-1121.06,0.00038356,14]
[341376728,1730857841057,-504.3058955,0.00038356,14]
[341376729,1730857841067,-500.0,0.00038356,2]
[341376730,1730857841077,-404.45380516,0.00038356,14]
[341376731,1730857841087,-509.88187626,0.00038356,14]
[341376732,1730857841098,-290.53751125,0.00038356,14]
[341376733,1730857841111,-209.46248875,0.00038356,14]
[341376734,1730857841121,-218.34903777,0.00038356,14]
[341376735,1730857841131,-500.0,0.00038356,14]
[341376736,1730857841141,-585.94014326,0.00038356,14]
[341376737,1730857841154,-6045.74,0.00038356,14]
[341376738,1730857841164,-566.2,0.00038356,14]
[341376739,1730857841174,-309.98241648,0.00038356,14]
[341376740,1730857841183,-714.97,0.00038356,14]
[341376741,1730857841192,-568.96666519,0.00038356,14]
[341376742,1730857841203,-503.15218794,0.00038356,14]
[341376743,1730857841213,-500.0,0.00038356,14]
[341376744,1730857841222,-528.27476165,0.00038356,14]
[341376745,1730857841232,-508.03986482,0.00038356,14]
[341376746,1730857841243,-507.74045192,0.00038356,14]
[341376747,1730857841253,-1268.49,0.00038356,14]
[341376748,1730857841263,-507.47077775,0.00038356,14]
[341376749,1730857841277,-500.0,0.00038356,14]
[341376750,1730857841288,-520.02120285,0.00038356,14]
[341376751,1730857841298,-500.0,0.00038356,14]
[341376752,1730857841308,-512.19934898,0.00038356,14]
[341376753,1730857841318,-500.0,0.00038356,14]
[341376754,1730857841328,-525.04158223,0.00038356,14]
[341376755,1730857841338,-500.0,0.00038356,14]
[341376756,1730857841351,-443.03396005,0.00038356,14]
[341376757,1730857841361,-673.09,0.00038356,14]
[341376758,1730857841370,-500.0,0.00038356,14]
[341376759,1730857841380,-503.36798588,0.00038356,14]
[341376760,1730857841390,-500.0,0.00038356,14]
[341376761,1730857841402,-515.92940411,0.00038356,14]
[341376762,1730857841411,-500.0,0.00038356,14]
[341376763,1730857841422,-500.0,0.00038356,14]
[341376764,1730857841433,-265.01487281,0.00038356,14]
[341376765,1730857841442,-535.74609661,0.00038356,14]
[341376766,1730857841451,-515.98517837,0.00038356,14]
[341376767,1730857841461,-500.0,0.00038356,14]
[341376768,1730857841470,-506.66092593,0.00038356,14]
[341376769,1730857841480,-513.76723098,0.00038356,14]
[341376770,1730857841490,-508.21909004,0.00038356,14]
[341376771,1730857841501,-529.71706357,0.00038356,14]
[341376772,1730857841511,-2681.91,0.00038356,14]
[341376773,1730857841521,-500.0,0.00038356,14]
[341376774,1730857841531,-504.91890931,0.00038356,14]
[341376775,1730857841541,-3726.72,0.00038356,14]
[341376776,1730857841551,-7975.25,0.00038356,14]
[341376777,1730857841561,-503.18799664,0.00038356,14]
[341376778,1730857841570,-505.22498324,0.00038356,14]
[341376779,1730857841579,-500.0,0.00038356,14]
[341376780,1730857841589,-409.00137872,0.00038356,14]
[341376781,1730857841599,-500.0,0.00038356,14]
[341376782,1730857841608,-500.0,0.00038356,14]
[341376783,1730857841618,-510.89582825,0.00038356,30]
[341376784,1730857841627,-365.93189968,0.00038356,14]
[341376785,1730857841637,-500.0,0.00038356,14]
[341376786,1730857841648,-540.48633008,0.00038356,14]
[341376787,1730857841657,-164.91554882,0.00038356,14]
[341376788,1730857841667,-500.0,0.00038356,14]
[341376789,1730857841677,-2383.25,0.00038356,14]
[341376790,1730857841687,-155.92517679,0.00038356,14]
[341376791,1730857841696,-508.82645432,0.00038356,14]
[341376792,1730857841706,-505.14,0.00038356,14]
[341376793,1730857841716,-503.23241832,0.00038356,14]
[341376794,1730857841726,-500.0,0.00038356,14]
[341376795,1730857841735,-726.1,0.00038356,14]
[341376796,1730857841744,-500.0,0.00038356,14]
[341376797,1730857841754,-1349.14,0.00038356,14]
[341376798,1730857841763,-502.66728639,0.00038356,14]
[341376799,1730857841773,-540.75255349,0.00038356,14]
[341376800,1730857841782,-504.34846256,0.00038356,14]
[341376801,1730857841791,-500.0,0.00038356,2]
[341376802,1730857841801,-508.22300967,0.00038356,14]
[341376803,1730857841810,-500.0,0.00038356,14]
[341376804,1730857841820,-500.0,0.00038356,14]
[341376805,1730857841829,-500.0,0.00038356,14]
[341376806,1730857841839,-500.0,0.00038356,14]
[341376807,1730857841848,-2583.4,0.00038356,14]
[341376808,1730857841857,-500.0,0.00038356,14]
[341376809,1730857841867,-580.39,0.00038356,14]
[341376810,1730857841877,-500.0,0.00038356,14]
[341376811,1730857841888,-514.85443906,0.00038356,14]
[341376812,1730857841900,-500.0,0.00038356,14]
[341376813,1730857841909,-378.54151768,0.00038356,14]
[341376814,1730857842004,-500.0,0.00038356,14]
[341376815,1730857842014,-500.0,0.00038356,14]
[341376816,1730857842023,-500.0,0.00038356,14]
[341376817,1730857842034,-523.69480383,0.00038356,14]
[341376818,1730857842043,-1344.7,0.00038356,14]
[341376819,1730857842053,-500.0,0.00038356,14]
[341376820,1730857842063,-210.45340459,0.00038356,14]
[341376821,1730857842072,-500.0,0.00038356,14]
[341376822,1730857842082,-500.0,0.0003863,14]
[341376823,1730857842092,-500.0,0.0003863,14]
[341376824,1730857842102,-500.0,0.0003863,7]
[341376825,1730857842112,-518.71402927,0.0003863,14]
[341376826,1730857842122,-500.0,0.0003863,14]
[341376827,1730857842132,-387.70144973,0.0003863,14]
[341376828,1730857842141,-500.0,0.0003863,14]
[341376829,1730857842152,-500.0,0.0003863,14]
[341376830,1730857842161,-631.60216647,0.0003863,14]
[341376831,1730857842170,-524.72658778,0.0003863,14]
[341376832,1730857842182,-500.0,0.0003863,14]
[341376833,1730857842191,-500.0,0.0003863,120]
[341376834,1730857842202,-841.4,0.0003863,14]
[341376835,1730857842213,-500.0,0.0003863,14]
[341376836,1730857842223,-500.0,0.0003863,14]
[341376837,1730857842232,-500.0,0.0003863,14]
[341376838,1730857842243,-500.0,0.0003863,14]
[341376839,1730857842253,-500.0,0.0003863,14]
[341376840,1730857842263,-500.0,0.0003863,14]
[341376841,1730857842273,-500.0,0.0003863,14]
[341376842,1730857842282,-500.0,0.0003863,14]
[341376843,1730857842295,-511.68738117,0.0003863,14]
[341376844,1730857842305,-500.0,0.0003863,14]
[341376845,1730857842316,-1272.92,0.0003863,14]
[341376846,1730857842325,-500.0,0.0003863,14]
[341376847,1730857842335,-500.0,0.0003863,14]
[341376848,1730857842346,-500.0,0.0003863,14]
[341376849,1730857842357,-89.57383782,0.0003863,14]
[341376898,1730857843836,-500.0,0.00038356,14]
[341376900,1730857843846,-242.91344844,0.0003863,14]
[341377186,1730857846873,-62.13564785,0.0003863,14]
[341377219,1730857847186,-105.37706589,0.0003863,14]
[341377222,1730857847196,-500.0,0.0003863,14]
[341377223,1730857847206,-698.85,0.0003863,14]
[341377225,1730857847215,-840.29448357,0.0003863,14]
[341377228,1730857847227,-237.01551643,0.0003863,14]
[341377230,1730857847237,-500.0,0.0003863,14]
[341377232,1730857847247,-2120.61,0.0003863,14]
[341377234,1730857847256,-500.0,0.0003863,14]
[341377235,1730857847265,-500.0,0.0003863,14]
[341377238,1730857847274,-500.0,0.0003863,14]
[341377239,1730857847283,-500.0,0.0003863,14]
[341377242,1730857847294,-163.23515583,0.0003863,14]
[341377244,1730857847304,-500.0,0.0003863,14]
[341377246,1730857847313,-554.59,0.0003863,14]
[341377248,1730857847323,-1121.06,0.0003863,14]
[341377250,1730857847332,-500.0,0.0003863,14]
[341377252,1730857847341,-500.0,0.0003863,14]
[341377254,1730857847351,-6045.74,0.0003863,14]
[341377256,1730857847366,-553.54501047,0.0003863,14]
[341377628,1730857856512,520.83333333,0.0002257,2]
[341377629,1730857871313,172.374863,0.00013973,2]
[341377630,1730857918745,520.83333333,0.00021693,2]
[341377631,1730857980863,520.83333333,0.00020816,2]
[341377633,1730858362527,171.511744,0.00013973,2]
[341377635,1730858593349,520.83333333,0.00020816,2]
[341377636,1730858741118,-150.0,0.000301,2]
[341377637,1730858741139,-205.47,0.00034258,30]
[341377638,1730858741160,-179.13457,0.00035104,2]
[341377639,1730858741181,-1860.0700669,0.00035362,2]
[341377640,1730858741202,-214.4131778,0.00035367,120]
[341377641,1730858741224,-173.076,0.00036758,2]
[341377642,1730858741246,-233.339302,0.0003705,2]
[341377643,1730858751091,-165.0,0.00033,2]
[341377644,1730858751112,-298.770852,0.0003705,2]
[341377645,1730858751132,-5.482758,0.0003789,30]
[341377646,1730858827090,-150.0,0.00028,2]
[341377647,1730858827112,-151.0,0.0003,120]
[341377648,1730858827134,-150.0,0.0003,2]
[341377649,1730858827159,-150.0,0.00033,2]
[341377650,1730858827180,-150.0,0.00035,2]
[341377651,1730858827201,-151.0,0.00035452,120]
[341377652,1730858827227,-213.9680594,0.0003789,30]
[341377653,1730858827250,-187.14409148,0.00038,60]
[341377654,1730858827273,-150.0,0.00038,2]
[341377655,1730858827295,-255.08099862,0.000382,109]
[341377656,1730858827319,-255.08099862,0.000382,109]
[341377657,1730858827341,-238.06761985,0.00038203,2]
[341377658,1730858827375,-161.93238015,0.00038203,2]
[341377659,1730858827402,-400.0,0.00038203,2]
[341377660,1730858827424,-449.4201593,0.00038204,30]
[341377661,1730858827447,-306.0,0.00038204,30]
[341377662,1730858827470,-357.71193481,0.00038256,2]
[341377663,1730858827492,-3167.20223511,0.00038283,2]
[341377664,1730858827514,-768.75,0.00038346,10]
[341377665,1730858827538,-500.0,0.00038355,7]
[341377666,1730858827559,-500.0,0.00038355,15]
[341377667,1730858827583,-500.0,0.00038355,15]
[341377668,1730858827605,-500.0,0.00038355,15]
[341377669,1730858827626,-239.12955583,0.00038355,15]
[341377670,1730858848096,-260.87044417,0.00038355,15]
[341377671,1730858848124,-248.68256958,0.00038355,15]
[341377672,1730858848147,-496.76458377,0.00038355,7]
[341377673,1730858853133,-16.22293352,0.00038355,7]
[341377674,1730858853155,-187.24,0.00038355,51]
[341377675,1730858853178,-477.87315427,0.00038355,15]
[341377676,1730858853200,-252.91279298,0.00038355,15]
[341377677,1730858853221,-128.11186423,0.00038356,14]
[341377678,1730858949094,-150.0,0.00028,2]
[341377680,1730858963682,170.398063,0.00013973,2]
[341377681,1730859018694,520.83333333,0.00029544,2]
[341377813,1730859043933,-153.04859918,0.00038256,110]
[341377815,1730859043943,-578.84,0.00038346,10]
[341377817,1730859043952,-544.16,0.00038346,10]
[341377819,1730859043962,-400.0,0.00038355,30]
[341377821,1730859043971,-307.0,0.00038355,5]
[341377823,1730859043980,-505.94120677,0.00038356,14]
[341377825,1730859043990,-518.44174743,0.00038356,14]
[341377827,1730859043999,-507.74021786,0.00038356,14]
[341377829,1730859044008,-500.0,0.00038356,14]
[341377831,1730859044018,-516.40372821,0.00038356,14]
[341377833,1730859044027,-503.26533508,0.00038356,14]
[341377835,1730859044036,-502.61240286,0.00038356,14]
[341377837,1730859044046,-504.58144552,0.00038356,14]
[341377838,1730859044055,-511.71732996,0.00038356,14]
[341377841,1730859044065,-500.0,0.00038356,14]
[341377843,1730859044075,-77.62520529,0.00038356,14]
[341377845,1730859044087,-156.80978071,0.00038356,14]
[341377847,1730859044098,-500.0,0.00038356,120]
[341377849,1730859044108,-500.0,0.00038356,14]
[341377851,1730859044118,-500.0,0.00038356,14]
[341377853,1730859044128,-198.31975226,0.00038356,14]
[341377867,1730859044228,-301.68024774,0.00038356,14]
[341377869,1730859044238,-33.37565412,0.00038356,14]
[341378129,1730859047027,-193.0,0.00033,2]
[341378131,1730859047037,-774.45434588,0.00038356,14]
[341378133,1730859047047,-501.27055833,0.00038356,14]
[341378135,1730859047056,-500.0,0.00038356,14]
[341378137,1730859047066,-451.38221052,0.00038356,2]
[341378139,1730859047078,-500.0,0.00038356,14]
[341378141,1730859047087,-500.0,0.00038356,14]
[341378143,1730859047097,-500.0,0.00038356,14]
[341378145,1730859047106,-500.0,0.00038356,14]
[341378147,1730859047115,-500.0,0.00038356,14]
[341378149,1730859047125,-500.0,0.00038356,14]
[341378151,1730859047134,-500.0,0.00038356,14]
[341378153,1730859047143,-500.0,0.00038356,14]
[341378155,1730859047153,-405.99246251,0.00038356,14]
[341378157,1730859047162,-500.0,0.00038356,14]
[341378159,1730859047171,-509.6658105,0.00038356,14]
[341378161,1730859047181,-500.0,0.00038356,14]
[341378163,1730859047190,-508.63059258,0.00038356,14]
[341378165,1730859047199,-500.0,0.00038356,14]
[341378167,1730859047209,-511.90368303,0.00038356,14]
[341378169,1730859047219,-500.0,0.00038356,14]
[341378172,1730859047230,-500.0,0.00038356,14]
[341378174,1730859047240,-500.0,0.00038356,14]
[341378176,1730859047251,-509.4234367,0.00038356,14]
[341378178,1730859047260,-508.40918229,0.00038356,14]
[341378180,1730859047269,-500.0,0.00038356,14]
[341378182,1730859047279,-500.0,0.00038356,14]
[341378184,1730859047291,-502.83605438,0.00038356,14]
[341378186,1730859047300,-500.0,0.00038356,14]
[341378188,1730859047310,-500.0,0.00038356,14]
[341378190,1730859047320,-271.47730645,0.00038356,14]
[341378192,1730859047329,-503.51731213,0.00038356,14]
[341378194,1730859047339,-500.0,0.00038356,14]
[341378196,1730859047348,-500.0,0.00038356,14]
[341378198,1730859047357,-527.90840494,0.00038356,14]
[341378200,1730859047367,-500.0,0.00038356,14]
[341378202,1730859047376,-500.0,0.00038356,14]
[341378204,1730859047385,-1224.71,0.00038356,14]
[341378206,1730859047395,-500.0,0.00038356,14]
[341378208,1730859047404,-401.22203576,0.00038356,14]
[341378210,1730859047414,-500.0,0.00038356,14]
[341378212,1730859047423,-500.0,0.00038356,14]
[341378214,1730859047433,-672.32,0.00038356,14]
[341378216,1730859047443,-500.0,0.00038356,14]
[341378218,1730859047453,-1036.45,0.00038356,14]
[341378220,1730859047462,-2136.68,0.00038356,14]
[341378222,1730859047472,-500.0,0.00038356,14]
[341378224,1730859047482,-500.0,0.00038356,7]
[341378226,1730859047492,-500.0,0.00038356,14]
[341378228,1730859047501,-573.36614204,0.00038356,14]
[341378230,1730859047511,-717.68,0.00038356,14]
[341378232,1730859047521,-500.0,0.00038356,14]
[341378234,1730859047531,-544.64,0.00038356,14]
[341378236,1730859047540,-500.0,0.00038356,14]
[341378238,1730859047550,-500.0,0.00038356,14]
[341378241,1730859047559,-503.26331059,0.00038356,14]
[341378243,1730859047571,-515.67713177,0.00038356,14]
[341378245,1730859047581,-500.0,0.00038356,14]
[341378247,1730859047590,-1086.13,0.00038356,14]
[341378249,1730859047600,-675.58,0.00038356,14]
[341378251,1730859047611,-500.0,0.00038356,14]
[341378253,1730859047620,-508.37,0.00038356,14]
[341378255,1730859047630,-500.0,0.00038356,14]
[341378257,1730859047639,-5815.63,0.00038356,14]
[341378259,1730859047649,-500.0,0.00038356,14]
[341378261,1730859047658,-500.0,0.00038356,14]
[341378263,1730859047668,-500.0,0.00038356,14]
[341378265,1730859047677,-500.0,0.00038356,14]
[341378266,1730859047687,-500.0,0.00038356,14]
[341378267,1730859047696,-500.0,0.00038356,14]
[341378268,1730859047706,-500.0,0.00038356,14]
[341378269,1730859047716,-500.0,0.00038356,14]
[341378270,1730859047726,-1270.7,0.00038356,14]
[341378271,1730859047735,-500.0,0.00038356,14]
[341378272,1730859047745,-500.0,0.00038356,14]
[341378273,1730859047754,-500.0,0.00038356,14]
[341378274,1730859047764,-500.0,0.00038356,14]
[341378275,1730859047773,-2691.55,0.00038356,14]
[341378277,1730859047783,-500.0,0.00038356,14]
[341378278,1730859047792,-515.66032493,0.00038356,14]
[341378280,1730859047804,-474.29773007,0.00038356,14]
[341378282,1730859047813,-500.0,0.00038356,14]
[341378284,1730859047826,-500.0,0.00038356,14]
[341378286,1730859047836,-500.0,0.00038356,14]
[341378288,1730859047845,-530.87168585,0.00038356,14]
[341378290,1730859047855,-500.0,0.00038356,14]
[341378292,1730859047864,-3571.44,0.00038356,14]
[341378295,1730859047875,-500.0,0.00038356,14]
[341378296,1730859047885,-8004.17,0.00038356,14]
[341378298,1730859047893,-506.98,0.00038356,14]
[341378300,1730859047902,-500.0,0.00038356,14]
[341378302,1730859047912,-222.39812171,0.00038356,14]
[341378304,1730859047921,-1353.15,0.00038356,14]
[341378306,1730859047930,-500.0,0.00038356,14]
[341378308,1730859047940,-338.34365822,0.00038356,14]
[341378310,1730859047949,-2497.54,0.00038356,14]
[341378312,1730859047959,-514.86960411,0.00038356,14]
[341378314,1730859047968,-488.93699201,0.00038356,14]
[341378316,1730859047978,-500.0,0.00038356,14]
[341378318,1730859047987,-500.0,0.00038356,14]
[341378321,1730859047997,-508.98559299,0.00038356,14]
[341378323,1730859048006,-695.84,0.00038356,14]
[341378325,1730859048016,-500.0,0.00038356,14]
[341378327,1730859048025,-2709.45,0.00038356,14]
[341378329,1730859048036,-498.24340415,0.00038356,14]
[341378331,1730859048046,-523.78543014,0.00038356,14]
[341378333,1730859048055,-332.37695873,0.00038356,14]
[341378335,1730859048065,-494.32777232,0.00038356,14]
[341378336,1730859048076,-625.95721993,0.00038356,14]
[341378338,1730859048085,-500.0,0.00038356,14]
[341378340,1730859048096,-500.0,0.00038356,14]
[341378343,1730859048107,-500.0,0.00038356,2]
[341378345,1730859048116,-500.0,0.00038356,14]
[341378346,1730859048126,-1288.67,0.00038356,14]
[341378349,1730859048135,-500.0,0.00038356,14]
[341378351,1730859048145,-500.0,0.00038356,14]
[341378353,1730859048155,-500.0,0.00038356,14]
[341378355,1730859048164,-505.82254212,0.00038356,14]
[341378357,1730859048174,-500.0,0.00038356,14]
[341378359,1730859048183,-611.29342231,0.00038356,14]
[341378361,1730859048193,-527.82977636,0.00038356,14]
[341378363,1730859048203,-500.0,0.00038356,14]
[341378365,1730859048212,-500.0,0.00038356,14]
[341378367,1730859048221,-500.0,0.00038356,14]
[341378369,1730859048232,-500.0,0.00038356,14]
[341378371,1730859048241,-694.05,0.00038356,14]
[341378373,1730859048251,-502.90988778,0.00038356,14]
[341378375,1730859048260,-500.0,0.00038356,14]
[341378377,1730859048269,-582.83,0.00038356,14]
[341378379,1730859048279,-500.0,0.00038356,14]
[341378381,1730859048290,-500.0,0.00038356,14]
[341378390,1730859048370,-1055.26,0.00038629,120]
[341378392,1730859048380,-500.0,0.0003863,14]
[341378394,1730859048390,-500.0,0.0003863,14]
[341378396,1730859048400,-500.0,0.0003863,120]
[341378398,1730859048410,-500.0,0.0003863,14]
[341378400,1730859048420,-500.0,0.0003863,14]
[341378402,1730859048429,-807.83,0.0003863,14]
[341378404,1730859048439,-500.0,0.0003863,14]
[341378406,1730859048448,-550.3899944,0.0003863,14]
[341378408,1730859048458,-500.0,0.0003863,14]
[341378409,1730859048468,-500.0,0.0003863,14]
[341378411,1730859048477,-170.91,0.0003863,14]
[341378413,1730859048487,-500.0,0.0003863,14]
[341378414,1730859048496,-500.0,0.0003863,14]
[341378416,1730859048506,-500.0,0.0003863,14]
[341378417,1730859048515,-500.0,0.0003863,14]
[341378419,1730859048525,-380.57071927,0.0003863,14]
[341378420,1730859048535,-500.0,0.0003863,14]
[341378422,1730859048546,-500.0,0.0003863,14]
[341378423,1730859048555,-158.03155189,0.0003863,14]
[341378425,1730859048566,-500.0,0.0003863,14]
[341378426,1730859048579,-500.0,0.0003863,14]
[341378428,1730859048588,-500.0,0.0003863,14]
[341378430,1730859048597,-500.0,0.0003863,14]
[341378431,1730859048607,-500.0,0.0003863,14]
[341378433,1730859048616,-1224.71,0.0003863,14]
[341378434,1730859048626,-500.0,0.0003863,14]
[341378436,1730859048636,-500.0,0.0003863,14]
[341378437,1730859048645,-500.0,0.0003863,14]
[341378439,1730859048654,-672.32,0.0003863,14]
[341378441,1730859048663,-500.0,0.0003863,14]
[341378442,1730859048673,-1036.45,0.0003863,14]
[341378444,1730859048682,-2136.68,0.0003863,14]
[341378446,1730859048692,-500.0,0.0003863,14]
[341378447,1730859048702,-500.0,0.0003863,7]
[341378449,1730859048711,-500.0,0.0003863,14]
[341378450,1730859048720,-717.68,0.0003863,14]
[341378452,1730859048730,-500.0,0.0003863,14]
[341378454,1730859048740,-500.0,0.0003863,14]
[341378455,1730859048750,-544.64,0.0003863,14]
[341378457,1730859048759,-500.0,0.0003863,14]
[341378459,1730859048770,-1086.13,0.0003863,14]
[341378460,1730859048780,-675.58,0.0003863,14]
[341378462,1730859048790,-504.77529101,0.0003863,14]
[341378464,1730859048805,-508.37,0.0003863,14]
[341378465,1730859048815,-500.0,0.0003863,14]
[341378467,1730859048826,-5815.63,0.0003863,14]
[341378469,1730859048836,-500.0,0.0003863,14]
[341378470,1730859048846,-500.0,0.0003863,14]
[341378472,1730859048855,-500.0,0.0003863,14]
[341378474,1730859048864,-500.0,0.0003863,14]
[341378475,1730859048876,-500.0,0.0003863,14]
[341378477,1730859048886,-500.0,0.0003863,14]
[341378479,1730859048895,-1270.7,0.0003863,14]
[341378480,1730859048904,-500.0,0.0003863,14]
[341378482,1730859048913,-500.0,0.0003863,14]
[341378484,1730859048922,-500.0,0.0003863,14]
[341378485,1730859048931,-500.0,0.0003863,14]
[341378487,1730859048941,-2691.55,0.0003863,14]
[341378488,1730859048950,-500.0,0.0003863,14]
[341378490,1730859048960,-500.0,0.0003863,14]
[341378492,1730859048970,-500.0,0.0003863,14]
[341378493,1730859048979,-500.0,0.0003863,14]
[341378495,1730859048988,-500.0,0.0003863,14]
[341378497,1730859048997,-3571.44,0.0003863,14]
[341378498,1730859049007,-500.0,0.0003863,14]
[341378500,1730859049017,-8004.17,0.0003863,14]
[341378502,1730859049026,-506.98,0.0003863,14]
[341378503,1730859049036,-1353.15,0.0003863,14]
[341378505,1730859049046,-406.80171229,0.0003863,14]
[341378507,1730859049056,-2497.54,0.0003863,14]
[341378508,1730859049067,-500.0,0.0003863,14]
[341378510,1730859049077,-695.84,0.0003863,14]
[341378512,1730859049086,-500.0,0.0003863,14]
[341378513,1730859049097,-2709.45,0.0003863,14]
[341378515,1730859049107,-500.0,0.0003863,14]
[341378517,1730859049117,-500.0,0.0003863,14]
[341378518,1730859049127,-500.0,0.0003863,2]
[341378520,1730859049138,-500.0,0.0003863,14]
[341378522,1730859049147,-1288.67,0.0003863,14]
[341378523,1730859049157,-500.0,0.0003863,14]
[341378525,1730859049166,-500.0,0.0003863,14]
[341378527,1730859049175,-500.0,0.0003863,14]
[341378528,1730859049185,-500.0,0.0003863,14]
[341378530,1730859049195,-500.0,0.0003863,14]
[341378532,1730859049205,-566.4135146,0.0003863,14]
[341378533,1730859049215,-694.05,0.0003863,14]
[341378535,1730859049224,-500.0,0.0003863,14]
[341378537,1730859049234,-582.83,0.0003863,14]
[341378538,1730859049244,-500.0,0.0003863,14]
[341378540,1730859049254,-500.0,0.0003863,14]
[341378542,1730859049263,-1000.0,0.0003863,3]
[341378543,1730859049272,-394.9882725,0.000387,2]
[341378545,1730859049281,-614.0,0.000387,2]
[341378546,1730859049290,-500.0,0.000387,57]
[341378548,1730859049299,-150.0,0.00038776,2]
[341378550,1730859049309,-201.388,0.00038776,2]
[341378551,1730859049319,-529.0,0.00038776,2]
[341378553,1730859049328,-2393.0,0.00038776,2]
[341378555,1730859049338,-1000.0,0.000388,50]
[341378556,1730859049347,-257.43951603,0.00038804,2]
[341378558,1730859049357,-161.47150749,0.000389,5]
[341378560,1730859049366,-160.0,0.000389,3]
[341378561,1730859049376,-240.17878616,0.000389,5]
[341378563,1730859049385,-500.0,0.00038904,14]
[341378564,1730859049395,-500.0,0.00038904,14]
[341378566,1730859049404,-500.0,0.00038904,120]
[341378568,1730859049413,-500.0,0.00038904,14]
[341378569,1730859049423,-500.0,0.00038904,14]
[341378571,1730859049432,-807.83,0.00038904,14]
[341378572,1730859049442,-500.0,0.00038904,14]
[341378574,1730859049451,-500.0,0.00038904,14]
[341378576,1730859049460,-500.0,0.00038904,14]
[341378577,1730859049469,-500.0,0.00038904,14]
[341378579,1730859049478,-500.0,0.00038904,14]
[341378581,1730859049488,-500.0,0.00038904,14]
[341378582,1730859049497,-500.0,0.00038904,14]
[341378584,1730859049506,-500.0,0.00038904,14]
[341378585,1730859049515,-500.0,0.00038904,14]
[341378586,1730859049524,-500.0,0.00038904,14]
[341378587,1730859049533,-581.53260436,0.00038904,14]
[341378588,1730859049542,-500.0,0.00038904,14]
[341378589,1730859049551,-500.0,0.00038904,14]
[341378590,1730859049560,-500.0,0.00038904,14]
[341378591,1730859049571,-1224.71,0.00038904,14]
[341378592,1730859049581,-500.0,0.00038904,14]
[341378593,1730859049590,-500.0,0.00038904,14]
[341378594,1730859049599,-500.0,0.00038904,14]
[341378595,1730859049608,-672.32,0.00038904,14]
[341378596,1730859049617,-500.0,0.00038904,14]
[341378597,1730859049626,-1036.45,0.00038904,14]
[341378598,1730859049635,-2136.68,0.00038904,14]
[341378599,1730859049645,-500.0,0.00038904,14]
[341378601,1730859049654,-500.0,0.00038904,7]